{"text_format":"3","workbook":"xlsx","n_sheets":1,"sheets":["Протокол ШЭ ВОШ по предмету"],"not_rendered":{"external_links":1,"defined_names":1},"read":"whole","date_system":"1900"}

{"sheet":"Протокол ШЭ ВОШ по предмету","index":0,"n_rows":10,"n_cols":15,"rows_kept":10}
["№","Фамилия","Имя","Отчество","Дата рождения","Пол","Участник с ОВЗ (да/нет)","Класс обучения","Класс участия","Балл","Максимальный балл","Статус","Призёр муниципального этапа прошлого года","ФИО учителя","Место работы учителя"]
[1,{"$f":"'[1]Протокол ШЭ ВОШ по предмету'!B2","v":"Багманов "},{"$f":"'[1]Протокол ШЭ ВОШ по предмету'!C2","v":"Раяз"},{"$f":"'[1]Протокол ШЭ ВОШ по предмету'!D2","v":"Русланович"},{"$f":"'[1]Протокол ШЭ ВОШ по предмету'!E2","v":"2012-09-01"},{"$f":"'[1]Протокол ШЭ ВОШ по предмету'!F2","v":"м"},"нет",{"$f":"'[1]Протокол ШЭ ВОШ по предмету'!H2","v":4},{"$f":"H2","v":4},{"$f":"'[1]Протокол ШЭ ВОШ по предмету'!J2","v":26},{"$f":"'[1]Протокол ШЭ ВОШ по предмету'!K2","v":36},{"$f":"'[1]Протокол ШЭ ВОШ по предмету'!L2","v":"победитель"},{"$f":"'[1]Протокол ШЭ ВОШ по предмету'!M2","v":"нет"},{"$f":"'[1]Протокол ШЭ ВОШ по предмету'!N2","v":"Сабирзянова Замиля Фаткелгаяновна"},{"$f":"'[1]Протокол ШЭ ВОШ по предмету'!O2","v":"МАОУ СОШ10"}]
[2,{"$f":"'[1]Протокол ШЭ ВОШ по предмету'!B3","v":"Фарукшина"},{"$f":"'[1]Протокол ШЭ ВОШ по предмету'!C3","v":"Тамина"},{"$f":"'[1]Протокол ШЭ ВОШ по предмету'!D3","v":"Ильсуровна"},{"$f":"'[1]Протокол ШЭ ВОШ по предмету'!E3","v":"2012-07-13"},{"$f":"'[1]Протокол ШЭ ВОШ по предмету'!F3","v":"ж"},"нет",{"$f":"'[1]Протокол ШЭ ВОШ по предмету'!H3","v":4},4,{"$f":"'[1]Протокол ШЭ ВОШ по предмету'!J3","v":24},{"$f":"'[1]Протокол ШЭ ВОШ по предмету'!K3","v":36},{"$f":"'[1]Протокол ШЭ ВОШ по предмету'!L3","v":"призер"},{"$f":"'[1]Протокол ШЭ ВОШ по предмету'!M3","v":"нет"},{"$f":"'[1]Протокол ШЭ ВОШ по предмету'!N3","v":"Миргалимова Эльвира Альбертовна"},{"$f":"'[1]Протокол ШЭ ВОШ по предмету'!O3","v":"МАОУ СОШ10"}]
[3,{"$f":"'[1]Протокол ШЭ ВОШ по предмету'!B4","v":"Хуснуллин"},{"$f":"'[1]Протокол ШЭ ВОШ по предмету'!C4","v":"Арслан"},{"$f":"'[1]Протокол ШЭ ВОШ по предмету'!D4","v":"Наилевич"},{"$f":"'[1]Протокол ШЭ ВОШ по предмету'!E4","v":"2011-10-24"},"м","нет",{"$f":"'[1]Протокол ШЭ ВОШ по предмету'!H4","v":4},4,{"$f":"'[1]Протокол ШЭ ВОШ по предмету'!J4","v":25},{"$f":"'[1]Протокол ШЭ ВОШ по предмету'!K4","v":36},{"$f":"'[1]Протокол ШЭ ВОШ по предмету'!L4","v":"призер"},{"$f":"'[1]Протокол ШЭ ВОШ по предмету'!M4","v":"нет"},{"$f":"'[1]Протокол ШЭ ВОШ по предмету'!N4","v":"Миргалимова Эльвира Альбертовна"},{"$f":"'[1]Протокол ШЭ ВОШ по предмету'!O4","v":"МАОУ СОШ10"}]
[4,{"$f":"'[1]Протокол ШЭ ВОШ по предмету'!B5","v":"Шайгарданов"},{"$f":"'[1]Протокол ШЭ ВОШ по предмету'!C5","v":"Ильдан"},{"$f":"'[1]Протокол ШЭ ВОШ по предмету'!D5","v":"Ленарович"},{"$f":"'[1]Протокол ШЭ ВОШ по предмету'!E5","v":"2012-03-01"},"м","нет",{"$f":"'[1]Протокол ШЭ ВОШ по предмету'!H5","v":4},4,{"$f":"'[1]Протокол ШЭ ВОШ по предмету'!J5","v":5},{"$f":"'[1]Протокол ШЭ ВОШ по предмету'!K5","v":36},{"$f":"'[1]Протокол ШЭ ВОШ по предмету'!L5","v":"участник"},{"$f":"'[1]Протокол ШЭ ВОШ по предмету'!M5","v":"нет"},{"$f":"'[1]Протокол ШЭ ВОШ по предмету'!N5","v":"Миргалимова Эльвира Альбертовна"},{"$f":"'[1]Протокол ШЭ ВОШ по предмету'!O5","v":"МАОУ СОШ10"}]
[5,{"$f":"'[1]Протокол ШЭ ВОШ по предмету'!B6","v":"Шаяхметова "},{"$f":"'[1]Протокол ШЭ ВОШ по предмету'!C6","v":"Сабина "},{"$f":"'[1]Протокол ШЭ ВОШ по предмету'!D6","v":"Ильшатовна "},{"$f":"'[1]Протокол ШЭ ВОШ по предмету'!E6","v":"2010-12-19"},{"$f":"'[1]Протокол ШЭ ВОШ по предмету'!F6","v":"ж"},"нет",{"$f":"'[1]Протокол ШЭ ВОШ по предмету'!H6","v":6},6,{"$f":"'[1]Протокол ШЭ ВОШ по предмету'!J6","v":12},{"$f":"'[1]Протокол ШЭ ВОШ по предмету'!K6","v":42},{"$f":"'[1]Протокол ШЭ ВОШ по предмету'!L6","v":"участник"},{"$f":"'[1]Протокол ШЭ ВОШ по предмету'!M6","v":"нет"},{"$f":"'[1]Протокол ШЭ ВОШ по предмету'!N6","v":"Фарукшина Гульназ Канифовна"},{"$f":"'[1]Протокол ШЭ ВОШ по предмету'!O6","v":"МАОУ СОШ10"}]
[6,{"$f":"'[1]Протокол ШЭ ВОШ по предмету'!B7","v":"Ситдикова"},{"$f":"'[1]Протокол ШЭ ВОШ по предмету'!C7","v":"Айзиля"},{"$f":"'[1]Протокол ШЭ ВОШ по предмету'!D7","v":"Алмазовна"},{"$f":"'[1]Протокол ШЭ ВОШ по предмету'!E7","v":"2010-05-20"},{"$f":"'[1]Протокол ШЭ ВОШ по предмету'!F7","v":"ж"},"нет",{"$f":"'[1]Протокол ШЭ ВОШ по предмету'!H7","v":6},6,{"$f":"'[1]Протокол ШЭ ВОШ по предмету'!J7","v":15},{"$f":"'[1]Протокол ШЭ ВОШ по предмету'!K7","v":42},{"$f":"'[1]Протокол ШЭ ВОШ по предмету'!L7","v":"участник"},{"$f":"'[1]Протокол ШЭ ВОШ по предмету'!M7","v":"нет"},{"$f":"'[1]Протокол ШЭ ВОШ по предмету'!N7","v":"Фарукшина Гульназ Канифовна"},{"$f":"'[1]Протокол ШЭ ВОШ по предмету'!O7","v":"МАОУ СОШ10"}]
[7,{"$f":"'[1]Протокол ШЭ ВОШ по предмету'!B8","v":"Миннеханова "},{"$f":"'[1]Протокол ШЭ ВОШ по предмету'!C8","v":"Разалина "},{"$f":"'[1]Протокол ШЭ ВОШ по предмету'!D8","v":"Марсельевна"},{"$f":"'[1]Протокол ШЭ ВОШ по предмету'!E8","v":"2008-08-19"},{"$f":"'[1]Протокол ШЭ ВОШ по предмету'!F8","v":"ж"},"нет",{"$f":"'[1]Протокол ШЭ ВОШ по предмету'!H8","v":8},8,{"$f":"'[1]Протокол ШЭ ВОШ по предмету'!J8","v":14},{"$f":"'[1]Протокол ШЭ ВОШ по предмету'!K8","v":47},{"$f":"'[1]Протокол ШЭ ВОШ по предмету'!L8","v":"участник"},{"$f":"'[1]Протокол ШЭ ВОШ по предмету'!M8","v":"нет"},{"$f":"'[1]Протокол ШЭ ВОШ по предмету'!N8","v":"Фарукшина Гульназ Канифовна"},{"$f":"'[1]Протокол ШЭ ВОШ по предмету'!O8","v":"МАОУ СОШ10"}]
[8,{"$f":"'[1]Протокол ШЭ ВОШ по предмету'!B9","v":"Гарипова"},{"$f":"'[1]Протокол ШЭ ВОШ по предмету'!C9","v":"Камилла"},{"$f":"'[1]Протокол ШЭ ВОШ по предмету'!D9","v":"Маратовна"},{"$f":"'[1]Протокол ШЭ ВОШ по предмету'!E9","v":"2007-12-23"},{"$f":"'[1]Протокол ШЭ ВОШ по предмету'!F9","v":"ж"},"нет",{"$f":"'[1]Протокол ШЭ ВОШ по предмету'!H9","v":8},8,{"$f":"'[1]Протокол ШЭ ВОШ по предмету'!J9","v":36},{"$f":"'[1]Протокол ШЭ ВОШ по предмету'!K9","v":47},{"$f":"'[1]Протокол ШЭ ВОШ по предмету'!L9","v":"победитель"},{"$f":"'[1]Протокол ШЭ ВОШ по предмету'!M9","v":"нет"},{"$f":"'[1]Протокол ШЭ ВОШ по предмету'!N9","v":"Фарукшина Гульназ Канифовна"},{"$f":"'[1]Протокол ШЭ ВОШ по предмету'!O9","v":"МАОУ СОШ10"}]
[9,"Хисматуллина ",{"$f":"'[1]Протокол ШЭ ВОШ по предмету'!C10","v":" Гузель "},{"$f":"'[1]Протокол ШЭ ВОШ по предмету'!D10","v":"Ильшатовна"},{"$f":"'[1]Протокол ШЭ ВОШ по предмету'!E10","v":"2005-11-27"},{"$f":"'[1]Протокол ШЭ ВОШ по предмету'!F10","v":"ж"},"нет",{"$f":"'[1]Протокол ШЭ ВОШ по предмету'!H10","v":11},11,{"$f":"'[1]Протокол ШЭ ВОШ по предмету'!J10","v":47},{"$f":"'[1]Протокол ШЭ ВОШ по предмету'!K10","v":52},{"$f":"'[1]Протокол ШЭ ВОШ по предмету'!L10","v":"победитель"},{"$f":"'[1]Протокол ШЭ ВОШ по предмету'!M10","v":"нет"},{"$f":"'[1]Протокол ШЭ ВОШ по предмету'!N10","v":"Фарукшина Гульназ Канифовна"},{"$f":"'[1]Протокол ШЭ ВОШ по предмету'!O10","v":"МАОУ СОШ10"}]